Cogmind - Beta 10.2 @@@ ROGUE MODE // 2022.02.20 @ 00:40:35 Player: russur Result: Self-destructed Performance ------------- Evolutions (1) 500 Regions Visited (3) 600 Robots Destroyed (14) 70 Value Destroyed (261) 261 Prototype IDs (0) 0 Alien Tech Used (0) 0 Bonus (0) 0 TOTAL SCORE: 1431 Bonus ------- None Cogmind --------- Core Integrity 362/400 Matter 260/300 Energy 144/250 System Corruption 0% Temperature Cool (105) Movement Walking (120) Location -9/Materials Parts ------- > --- POWER (1) -------- Ion Engine > --- PROPULSION (4) --- Aluminum Leg Improved Aluminum Leg Improved Aluminum Leg Improved Aluminum Leg > --- UTILITY (2) ------ Heat Sink Sensor Array > --- WEAPON (2) ------- EM Pulse Gun Spread Laser > --- INVENTORY (4) ---- Light Ion Engine Integration Mediator EM Pulse Gun Mining Laser Peak State ------------ > --- POWER ------------ Ion Engine > --- PROPULSION ------- Aluminum Leg Improved Aluminum Leg Improved Aluminum Leg Improved Aluminum Leg > --- UTILITY ---------- Heat Sink Sensor Array > --- WEAPON ----------- EM Pulse Gun Spread Laser > --- INVENTORY -------- Light Ion Engine Integration Mediator EM Pulse Gun Mining Laser [Rating: 13] Favorites ----------- Power Ion Engine Engine Ion Engine Propulsion Aluminum Leg Leg Aluminum Leg Wheel Wheel Utility Heat Sink Device Heat Sink Storage Small Storage Unit Protection Hardened Light Armor Plating Weapon EM Pulse Gun Energy Gun EM Pulse Gun Ballistic Gun Light Assault Rifle Build | -11 -10 -10 -9 ------- Run | Scr Mat Min Mat Slots Evolved 2 | . . . 2 Power . | . . . . Propulsion 2 | . . . 2 Utility . | . . . . Weapon . | . . . . Parts Attached 21 | 6 10 1 4 Power 2 | 1 1 . . Engine 2 | 1 1 . . Core . | . . . . Reactor . | . . . . Propulsion 9 | 2 3 . 4 Treads . | . . . . Leg 7 | . 3 . 4 Wheel 2 | 2 . . . Hover . | . . . . Flight . | . . . . Utility 5 | 1 4 . . Device 2 | . 2 . . Storage 1 | 1 . . . Processor . | . . . . Hackware . | . . . . Protection 2 | . 2 . . Artifact . | . . . . Weapon 5 | 2 2 1 . Energy Gun 4 | 1 2 1 . Energy Cannon . | . . . . Ballistic Gun 1 | 1 . . . Ballistic Cannon . | . . . . Launcher . | . . . . Special Weapon . | . . . . Impact Weapon . | . . . . Slashing Weapon . | . . . . Piercing Weapon . | . . . . Special Melee Weapon . | . . . . Unidentified Prototypes . | . . . . Parts Lost . | . . . . Power . | . . . . Propulsion . | . . . . Utility . | . . . . Weapon . | . . . . Highest Loss Streak . | . . . . Average Slot Usage (%) 94 | . 99 100 81 Engine 13 | . 14 14 11 Leg 27 | . 26 28 26 Device 17 | . 4 28 22 Protection 8 | . 23 . . Energy Gun 25 | . 24 28 22 Ballistic Gun 1 | . 3 . . Naked Turns . | . . . . Heaviest Build 20 | 10 20 12 12 Greatest Support 46 | 20 20 20 46 Greatest Overweight (x) 1 | . 1 . . Average Overweight (x) . | . . . . Largest Inventory Capacity 6 | 6 6 4 4 Average Capacity 4 | 5 4 4 4 Most Carried 6 | 6 5 4 4 Average Carried 3 | 2 3 3 4 Final Capacity 6 | 6 4 4 4 Final Carried 6 | 6 4 4 4 Class Distribution -------------------- 100% | Mutant Dominant Class ---------------- Mutant | -10/Materials Mutant | -10/Mines Mutant | -9/Materials Resources | -11 -10 -10 -9 ----------- Run | Scr Mat Min Mat Matter Collected 376 | 253 113 10 . Remotely . | . . . . Salvage Created 496 | 87 250 36 123 Parts 34 | 2 17 7 8 Haulers Intercepted . | . . . . Recyclers Shooed 1 | . 1 . . Parts Field Recycled . | . . . . Retrieved Matter . | . . . . Parts Self-Destructed . | . . . . Prevented . | . . . . Kills | -11 -10 -10 -9 ------- Run | Scr Mat Min Mat Combat Hostiles Destroyed 8 | . 2 3 3 Guns 8 | . 2 3 3 Classes Destroyed 8 | 1 5 1 1 Worker 1 | . 1 . . Builder 1 | . 1 . . Recycler 2 | 1 1 . . Operator 1 | . 1 . . Watcher 1 | . 1 . . Swarmer 3 | . . 3 . Grunt 4 | . 2 . 2 Sentry 1 | . . . 1 Best Kill Streak 3 | 1 2 3 3 Combat Bots Only 3 | . 1 3 3 Max Kills in Single Turn 2 | 1 2 1 1 Gunslinging . | . . . . Exploded . | . . . . Melee . | . . . . Uniques/NPCs Destroyed . | . . . . Combat | -11 -10 -10 -9 -------- Run | Scr Mat Min Mat Damage Taken 488 | . 237 41 210 Core 80 | . 34 8 38 Absorbed by Shields . | . . . . Core Remaining (%) 91 | 100 . 83 . Volleys Fired 33 | 4 18 3 8 Largest 2 | 2 2 2 2 Hottest 105 | 60 80 105 105 Shots Fired 62 | 8 32 6 16 Gun 62 | 8 32 6 16 Cannon . | . . . . Launcher . | . . . . Special . | . . . . Kinetic 6 | 4 2 . . Thermal 15 | . 4 3 8 Explosive . | . . . . Electromagnetic 41 | 4 26 3 8 Robot Hit Streak 7 | 5 7 5 7 Robot Miss Streak 5 | 1 5 4 3 Penetration Max . | . . . . Secondary Targets 1 | . . 1 . Max Gunslinging Chain 1 | . . 1 . Shots Hit Robots 41 | 7 16 5 13 Core Hits 28 | 2 10 5 11 Critical Hits . | . . . . Critical Kills . | . . . . Critical Parts Destroyed . | . . . . Melee Attacks . | . . . . Impact . | . . . . Slashing . | . . . . Piercing . | . . . . Sneak Attacks . | . . . . Combat Hostiles . | . . . . Follow-up Attacks . | . . . . Damage Inflicted 542 | 70 226 53 193 Guns 542 | 70 226 53 193 Cannons . | . . . . Explosions . | . . . . Melee . | . . . . Ramming . | . . . . Kinetic 33 | 33 . . . Thermal 175 | . 52 31 92 Explosive . | . . . . Electromagnetic 334 | 37 174 22 101 Impact . | . . . . Slashing . | . . . . Piercing . | . . . . Highest Corruption . | . . . . Average Corruption . | . . . . Corruption Purged . | . . . . Overload Shots . | . . . . Overflow Damage . | . . . . Projectiles . | . . . . Explosions . | . . . . Melee . | . . . . Knockbacks . | . . . . Impact . | . . . . Kinetic . | . . . . Secondary . | . . . . Self-Inflicted Damage . | . . . . Shots . | . . . . Rammed . | . . . . Targets Rammed . | . . . . Kicked . | . . . . Crushed . | . . . . Highest Temperature 450 | 20 450 45 105 Average Temperature 146 | 15 185 24 48 Received Heat Transfer 222 | . 129 . 93 Effects 2 | . 2 . . Interference 2 | . 2 . . Siege Activations . | . . . . Robots Corrupted . | . . . . Combat Hostiles . | . . . . Parts Fried 2 | . 2 . . Impact Corruptions . | . . . . Robots Melted . | . . . . Combat Hostiles . | . . . . Parts Melted . | . . . . Heat Transferred 220 | . 65 35 120 Parts Sabotaged . | . . . . Parts Stolen . | . . . . Parts Stripped . | . . . . Power Chain Reactions . | . . . . Missiles Intercepted . | . . . . Alert | -11 -10 -10 -9 ------- Run | Scr Mat Min Mat Peak Influence 134 | 5 109 100 134 Initial 42 | . 3 42 39 Average 43 | 1 54 42 52 Maximum Alert Level . | . . . . Low Security (%) 100 | 100 100 100 100 Level 1 . | . . . . Level 2 . | . . . . Level 3 . | . . . . Level 4 . | . . . . Level 5 . | . . . . High Security . | . . . . Max Security . | . . . . Squads Dispatched 5 | . 2 . 3 Investigation 2 | . . . 2 Extermination . | . . . . Reinforcement 3 | . 2 . 1 Assault . | . . . . Garrison . | . . . . Intercept . | . . . . Construction Impeded . | . . . . Haulers Reinforced . | . . . . Stealth | -11 -10 -10 -9 --------- Run | Scr Mat Min Mat Distress Signals . | . . . . Communications Jammed . | . . . . Distress Signals . | . . . . Times Spotted 18 | . 8 5 5 Peak Tracking Total 5 | . 4 5 4 Tactical Retreats 1 | . . 1 . Traps | -11 -10 -10 -9 ------- Run | Scr Mat Min Mat Traps Triggered . | . . . . Indirectly . | . . . . Trap Hack Attempts . | . . . . Triggered . | . . . . Disarmed . | . . . . Reprogrammed . | . . . . Reused . | . . . . Traps Extracted . | . . . . Installed . | . . . . Triggered . | . . . . Machines | -11 -10 -10 -9 ---------- Run | Scr Mat Min Mat Machines Disabled . | . . . . Max in Single Turn . | . . . . Machines Sabotaged . | . . . . Garrisons Compromised . | . . . . Overloaded Fab Kills . | . . . . Fab Network Shutdowns . | . . . . Hacking | -11 -10 -10 -9 --------- Run | Scr Mat Min Mat Machines Accessed 3 | . 1 . 2 Terminals 3 | . 1 . 2 Fabricators . | . . . . Repair Stations . | . . . . Recycling Units . | . . . . Scanalyzers . | . . . . Garrison Access . | . . . . Total Hacks 8 | . 2 . 6 Successful 1 | . 1 . . Failed 7 | . 1 . 6 Catastrophic 3 | . . . 3 Database Lockouts . | . . . . Manual 8 | . 2 . 6 Terminals 8 | . 2 . 6 Fabricators . | . . . . Repair Stations . | . . . . Recycling Units . | . . . . Scanalyzers . | . . . . Garrison Access . | . . . . Terminal Hacks . | . . . . Fabricator Hacks . | . . . . Repair Station Hacks . | . . . . Recycling Unit Hacks . | . . . . Scanalyzer . | . . . . Garrison Access Hacks . | . . . . Unauthorized Hacks 1 | . 1 . . Terminals 1 | . 1 . . Botnet 1 | . 1 . . Fabricators . | . . . . Repair Stations . | . . . . Recycling Units . | . . . . Scanalyzers . | . . . . Garrison Access . | . . . . Data Cores Recovered . | . . . . Used . | . . . . Hacking Detections 3 | . 1 . 2 Full Trace Events 2 | . . . 2 Feedback Events . | . . . . Feedback Blocked . | . . . . Robot Schematics Acquired . | . . . . Robots Built . | . . . . Matter . | . . . . Time . | . . . . Total Robot Build Rating . | . . . . Part Schematics Acquired . | . . . . Parts Built . | . . . . Matter . | . . . . Time . | . . . . Total Part Build Rating . | . . . . Parts Repaired . | . . . . Time . | . . . . Parts Recycled . | . . . . Recycled Matter . | . . . . Retrieved Matter . | . . . . Retrieved Components . | . . . . Parts Scanalyzed . | . . . . Part Schematics Acquired . | . . . . Parts Damaged . | . . . . Bothacking | -11 -10 -10 -9 ------------ Run | Scr Mat Min Mat Used RIF Installer . | . . . . Robots Hacked . | . . . . Non-combat . | . . . . Combat . | . . . . Robot Hacks Applied . | . . . . Relay Couplers Released . | . . . . Robots Rewired . | . . . . Allies Hacked . | . . . . Hacks Repelled . | . . . . Allies | -11 -10 -10 -9 -------- Run | Scr Mat Min Mat Total Allies 3 | . . 3 . Largest Group 3 | . . 3 . Highest-Rated Group 76 | . . 76 . Highest-Rated Ally 31 | . . 31 . Total Orders . | . . . . Ally Attacks 4 | . . 4 . Total Damage 63 | . . 63 . Kills . | . . . . Allies Corrupted . | . . . . Allies Melted . | . . . . Intel | -11 -10 -10 -9 ------- Run | Scr Mat Min Mat Robot Analysis Total . | . . . . Derelict Logs Recovered 1 | . . 1 . Drone Launches . | . . . . Drone Recoveries . | . . . . Exploration | -11 -10 -10 -9 ------------- Run | Scr Mat Min Mat Turns Passed 595 | 72 203 174 146 Spaces Moved 377 | 58 88 135 96 Core 1 | 1 . . . Treads . | . . . . Legs 310 | . 79 135 96 Wheels 66 | 57 9 . . Hover . | . . . . Flight . | . . . . Fastest Speed 50 | 50 80 120 120 Average Speed 112 | 79 116 120 120 Slowest Speed 150 | 80 150 120 120 Overloaded Moves . | . . . . Propulsion Burnouts . | . . . . Robots Hopped . | . . . . Cave-ins Triggered . | . . . . Exploration Rate (%) 18 | 4 17 42 12 Regions Visited 3 Branch Regions 1 Pre-discovered Areas 1 | . . 1 . Known Exits Taken . | . . . . Unknown Exits Taken 3 | 1 1 1 . Scrap Searched . | . . . . Spaces Dug . | . . . . Terrain Destroyed . | . . . . Melee . | . . . . Projectile . | . . . . AOE . | . . . . Terrain Rammed . | . . . . Walls Destroyed . | . . . . Machines Disabled . | . . . . Actions | -11 -10 -10 -9 --------- Run | Scr Mat Min Mat Total 482 | 73 158 141 110 Wait 30 | . 29 1 . Move 374 | 57 87 134 96 Hop . | . . . . Pick Up 10 | 6 3 1 . Fast Attach 14 | 6 6 . 2 Attach 1 | . 1 . . Detach . | . . . . Swap 6 | . 3 1 2 Drop 14 | . 11 1 2 Fire 33 | 4 18 3 8 Melee . | . . . . Ram . | . . . . Kick . | . . . . Crush . | . . . . Escape Stasis . | . . . . Rewire . | . . . . Trap . | . . . . Miscellaneous . | . . . . Route ------- -11/Scrapyard -10/Materials -10/Mines -9/Materials History --------- Turn | Location | Event 20 | -11/Scrapyard | Discovered new exit (range 16) 73 | -11/Scrapyard | Entered Materials 235 | -10/Materials | Discovered new exit (range 10) 276 | -10/Materials | Entered Mines 279 | -10/Mines | Received a Mining Laser from a helpful Derelict 314 | -10/Mines | Build established: Mutant 387 | -10/Mines | Assembled infested the area 443 | -10/Mines | Discovered new exit (range 7) 450 | -10/Mines | Entered Materials 450 | -9/Materials | Evolved 2 slots: Propulsion x2 596 | -9/Materials | Self-destructed Last Messages --------------- 00443_ EXIT=FOUND PARAMETERS=PROPULSION_2 LOCATION=UNKNOWN GOAL=ESCAPE 00498_ Connecting with Terminal... 00498_ Current location identified: Materials 00498_ ALERT: Suspicious activity at Terminal M003. Dispatching Investigation squad. 00510_ K-01 Serf collects debris. 00526_ Connecting with Terminal... 00526_ ALERT: Suspicious activity at Terminal M011. Dispatching Investigation squad. 00539_ K-01 Serf collects debris. 00554_ ALERT: Hostiles spotted, dispatching reinforcements to Terminal M008. 00562_ Acquired Imp. Aluminum Leg. 00567_ Dropped Imp. Aluminum Leg. 00570_ Dropped Aluminum Leg. 00575_ G-34 Mercenary destroyed. 00587_ Y-45 Defender destroyed. Map ----- +----------------------------------------------------+ | #???????????????????????????????????????????? | | """ #???????????????????????????????????????????? | | """ #???????????????????????????????????????????? | | """ #???????????????????????????????????????????? | | #???????????????????????????????????????????? | | #+####???????????????????????????????????????????? | | #????????????????????????????????????????????? | | #????????????????????????????????????????????? | | ######???????????????????????????????????????? | | # #???????????????????????????????????????? | | # #???????????????????????????????????????? | | ## #???????????????????????????????????????? | | ## #???????????????????????????????????????? | | ## #?????#?????????????????????????????????? | | ## #???? #?????????????????????????????????? | | ## #??? #?????????????????????????????????? | | ## #?? #?????????????????????????????????? | | ## #?# ##????????????????????????????????? | | ###+### [ #????????????????????????????????? | | #????????????????????????????????? | | #????????????????????????????????? | | #????????????????????????????????? | | ###+### #???##########???????????????????? | | ### T ###+###???# #???????????????????? | | #?#] #?????????# #???????????????????? | | #?# [ #?????????# =@! #???????????????????? | | #?# #?????????# =! #???????????????????? | | #?# #?????????# !] #???????????????????? | | #?# #?????????# #???????????????????? | | #?# !#?????????# #???????????????????? | | ####?# #?????????# %= #???????????????????? | | ?????# #?????????#!=g* !#???????????????????? | | ?????###+##############g########?????????????????? | | ?????# %% ???????????? | | ?????# * ???????????? | | ?????+ ???????????? | | ?????# ????????????? | | ?? + ????????????? | | "" ############################# ?????????????? | | ?????????????????????????????????#????????????? | | ????????????????????????????????????????????????? | | ?????????????????????????????????????????????????? | | ?????????????????????????????????????????????????? | | ?????????????????????????????????????????????????? | | | | | | | | | | | | | +----------------------------------------------------+ Best States ------------- Heat Dissipation 38 Energy Generation 10 Energy Capacity 250 Matter Stores 300 Matter Capacity 300 Sight Range 16 Robot Scan Range 10 Terrain Scan Density 10 Armor Coverage 300 Evasion (%) 44 Item Schematics ----------------- None Robot Schematics ------------------ None Fabricated ------------ Nothing Alien Tech Used ----------------- None Achievements -------------- None Challenges ------------ None Game ------ Seed LegLegBiocell Manual? 0 Play Time 00:09:55 Cumulative 19.2 hours Start 2022.02.20 @ 00:31:45 End 2022.02.20 @ 00:40:35 Sessions 1 Manual Loads 0 Difficulty Rogue Special Mode None Game No. 48 Rogue 48 Adventurer 0 Explorer 0 Win Type - Total 0 Types 0/0/0/0/0/0/0/0/0 Lore% 20 Gallery% 28 Achievement% 23 Wizard Run 0 Options --------- ASCII 0 Keyboard 0 Movement Mouse Keybinds 0 Fullscreen 1 Font 16/SmallcapsGlow Map View 76x50 Tactical HUD 1 Map Filters NONE Filters NONE Steam 1 RUN: 82ff79c6-c24e-49ab-b73f-67a294059e41